bitfinex-derivatives/quotes_BTCF0:USTF0_20250722
["timestamp","ask_amount","ask_price","bid_price","bid_amount"]
[1753172632787,0.2078151,117890.0,117880.0,0.13424]
[1753172632986,1.16141192,117890.0,117880.0,0.13424]
[1753172633385,1.16141192,117890.0,117870.0,0.14293967]
[1753172633386,0.2998695,117880.0,117870.0,0.14293967]
[1753172633584,1.86696632,117880.0,117870.0,0.06696]
[1753172634088,1.88454855,117880.0,117870.0,0.06696]
[1753172634483,1.86696632,117880.0,117870.0,0.06696]
[1753172634987,0.2998838,117870.0,117860.0,0.06696]
[1753172635187,2.16816529,117870.0,117860.0,0.06696]
[1753172635792,2.23765431,117870.0,117860.0,0.06696]
[1753172636284,0.2998982,117860.0,117850.0,0.13424]
[1753172636590,1.28020409,117860.0,117850.0,0.14421]
[1753172637082,1.64100409,117860.0,117850.0,0.14421]
[1753172637686,1.64100409,117860.0,117850.0,0.06696]
[1753172637991,1.64100409,117860.0,117850.0,0.13424]
[1753172638590,1.64100409,117860.0,117850.0,0.14421]
[1753172638888,0.2395925,117850.0,117840.0,0.14421]
[1753172639190,0.96871548,117850.0,117840.0,0.13424]
[1753172639382,0.96871548,117850.0,117840.0,0.06696]
[1753172640282,0.2999269,117840.0,117830.0,0.58017]
[1753172640486,1.21144839,117840.0,117830.0,0.7498313]
[1753172640682,0.0444103,117850.0,117840.0,0.1696469]
[1753172640889,0.6394,117850.0,117840.0,0.7498169]
[1753172641389,0.8090325,117850.0,117840.0,0.58017]
[1753172641590,1.14343399,117850.0,117840.0,0.58017]
[1753172641790,0.53675399,117850.0,117840.0,0.58017]
[1753172641986,1.60711548,117850.0,117840.0,0.14421]
[1753172642186,1.60711548,117850.0,117840.0,0.06696]
[1753172642398,0.2999269,117840.0,117830.0,0.13424]
[1753172642597,0.99512839,117840.0,117830.0,0.13424]
[1753172642998,0.99512839,117840.0,117830.0,0.06796]
[1753172644199,0.6607269,117840.0,117830.0,0.06796]
[1753172644495,0.8770069,117840.0,117830.0,0.22037]
[1753172644691,1.21140839,117840.0,117830.0,0.22037]
[1753172645097,1.21140839,117840.0,117830.0,0.3900313]
[1753172645296,1.21140839,117840.0,117830.0,0.22037]
[1753172645702,1.21440839,117840.0,117830.0,0.21937]
[1753172645995,0.57700839,117840.0,117830.0,0.21937]
[1753172646298,1.21336839,117840.0,117830.0,0.21937]
[1753172646499,1.27368839,117840.0,117830.0,0.13424]
[1753172646694,1.27368839,117840.0,117820.0,0.13424]
[1753172646695,0.2999413,117830.0,117820.0,0.13424]
[1753172647002,0.99514279,117830.0,117820.0,0.13424]
[1753172647192,0.99514279,117830.0,117820.0,0.14421]
[1753172647393,0.99514279,117830.0,117820.0,0.21937]
[1753172647795,0.99514279,117830.0,117820.0,0.14421]
[1753172648395,0.2760701,117810.0,117800.0,0.44593]
[1753172648592,1.63253159,117810.0,117800.0,0.00997]
[1753172648996,1.27173159,117810.0,117800.0,0.14421]
[1753172649599,1.280374,117810.0,117800.0,0.14821]
[1753172649897,1.641174,117810.0,117800.0,0.004]
[1753172650206,0.3033745,117800.0,117790.0,0.50235]
[1753172650399,0.63777599,117800.0,117790.0,0.50235]
[1753172650901,0.97217748,117800.0,117790.0,0.0652]
[1753172651198,0.97217748,117800.0,117790.0,0.08549]
[1753172651397,0.0424378,117770.0,117750.0,0.5305733]
[1753172651599,2.69134369,117760.0,117750.0,0.66362406]
[1753172651793,2.69121249,117760.0,117750.0,0.75169]
[1753172652000,2.69121249,117760.0,117750.0,0.9214666]
[1753172652193,2.69121249,117760.0,117750.0,0.75169]
[1753172652393,2.69121249,117760.0,117750.0,0.82766967]
[1753172652600,2.69121249,117760.0,117750.0,0.99744597]
[1753172653000,2.356811,117760.0,117750.0,0.82966967]
[1753172653203,2.69121249,117760.0,117750.0,0.82966967]
[1753172653399,2.69121249,117760.0,117750.0,0.68426597]
[1753172653600,2.69121249,117760.0,117750.0,0.74946597]
[1753172653800,2.75806314,117760.0,117750.0,0.74946597]
[1753172654001,2.75806314,117760.0,117750.0,0.94048967]
[1753172654196,2.75806314,117760.0,117750.0,1.02514967]
[1753172654810,2.75806314,117760.0,117750.0,1.02614967]
[1753172655117,2.81533314,117760.0,117750.0,1.02614967]
[1753172655409,2.81533314,117760.0,117750.0,0.30454967]
[1753172655604,2.81533314,117760.0,117750.0,0.18470967]
[1753172656109,2.81533314,117760.0,117750.0,0.10873]
[1753172656299,2.17793314,117760.0,117750.0,0.51515]
[1753172656504,2.42378165,117760.0,117750.0,0.66534967]
[1753172656812,2.75818314,117760.0,117750.0,0.66534967]
[1753172657207,2.17793314,117760.0,117750.0,0.66534967]
[1753172657404,2.81541314,117760.0,117750.0,0.30454967]
[1753172657708,2.81541314,117760.0,117750.0,0.18470967]
[1753172657906,2.81541314,117760.0,117750.0,0.0128]
[1753172658107,0.3574663,117750.0,117740.0,0.3608]
[1753172658308,1.02626928,117750.0,117740.0,0.3608]
[1753172658603,0.69186779,117750.0,117740.0,0.6265207]
[1753172658806,0.69186779,117750.0,117740.0,0.6721407]
[1753172659007,0.69186779,117750.0,117740.0,0.50235]
[1753172659207,0.69186779,117750.0,117740.0,0.6741407]
[1753172659603,0.69186779,117750.0,117740.0,0.50535]
[1753172659805,0.69186779,117750.0,117740.0,0.45973]
[1753172660310,0.69186779,117750.0,117740.0,0.6295207]
[1753172660512,0.3574663,117750.0,117740.0,0.6295207]
[1753172660715,0.69186779,117750.0,117740.0,0.6295207]
[1753172660912,0.69186779,117750.0,117740.0,0.6731407]
[1753172661616,0.63459779,117750.0,117740.0,0.7473607]
[1753172661812,0.08283,117750.0,117740.0,0.7473607]
[1753172662010,0.8073763,117750.0,117740.0,0.7473607]
[1753172662204,0.97200149,117750.0,117740.0,0.7473607]
[1753172662410,0.6376,117750.0,117740.0,0.7473607]
[1753172662710,1.14177779,117750.0,117740.0,0.7473607]
[1753172663216,1.19155779,117750.0,117740.0,0.7473607]
[1753172663912,0.8902063,117750.0,117740.0,0.7473607]
[1753172664116,0.06685065,117760.0,117750.0,0.3091363]
[1753172664317,0.8073644,117760.0,117750.0,0.7463463]
[1753172664716,1.14176589,117760.0,117750.0,0.7463463]
[1753172665117,0.8073644,117760.0,117750.0,0.7463463]
[1753172665317,0.8083644,117760.0,117750.0,0.7463463]
[1753172665724,0.8104044,117760.0,117750.0,0.7463463]
[1753172666218,0.6406,117760.0,117750.0,0.7463463]
[1753172666714,0.6386,117760.0,117750.0,0.7463463]
[1753172666919,0.8083619,117760.0,117750.0,0.7463463]
[1753172667219,0.6386,117760.0,117750.0,0.7463463]
[1753172667421,0.8083619,117760.0,117750.0,0.7463463]
[1753172669323,1.14276339,117760.0,117750.0,0.7463463]
[1753172669822,0.8083619,117760.0,117750.0,0.7463463]
[1753172670322,0.8083619,117760.0,117750.0,0.7473463]
[1753172671522,0.6386,117760.0,117750.0,0.7473463]
[1753172671925,0.63856,117760.0,117750.0,0.7473463]
[1753172672422,0.001,117760.0,117750.0,1.25159579]
[1753172672924,0.2546141,117780.0,117770.0,0.2544075]
[1753172672925,0.50414539,117780.0,117770.0,0.2544075]
[1753172673124,0.50414539,117780.0,117770.0,1.1071175]
[1753172673125,0.8073039,117780.0,117770.0,1.1071175]
[1753172673926,1.14170539,117780.0,117770.0,1.1071175]
[1753172674424,1.14370539,117780.0,117770.0,1.1071175]
[1753172674724,1.19348539,117780.0,117770.0,1.1071175]
[1753172675126,1.25075539,117780.0,117770.0,1.1071175]
[1753172676023,0.9969939,117780.0,117770.0,1.1071175]
[1753172676222,1.27412539,117780.0,117770.0,1.1071175]
[1753172677425,1.34871326,117780.0,117770.0,0.21577]
[1753172677623,0.1697475,117770.0,117760.0,0.9678848]
[1753172677924,0.69117899,117770.0,117760.0,0.43795]
[1753172678125,0.69117899,117770.0,117760.0,0.6077119]
[1753172678126,0.3567775,117770.0,117760.0,0.6077119]
[1753172678326,0.69117899,117770.0,117760.0,0.79875]
[1753172678529,0.69117899,117770.0,117760.0,0.9685119]
[1753172678723,0.69117899,117770.0,117760.0,0.43795]
[1753172678923,0.69117899,117770.0,117760.0,0.9685119]
[1753172679228,0.69117899,117770.0,117760.0,1.0427319]
[1753172679429,0.3567775,117770.0,117760.0,1.0427319]
[1753172679729,0.36745149,117770.0,117760.0,1.0427319]
[1753172681430,0.03505,117770.0,117760.0,1.0427319]
[1753172681927,0.002,117770.0,117760.0,1.0427319]
[1753172682128,1.18900589,117780.0,117770.0,0.2586675]
[1753172682328,1.18900589,117780.0,117770.0,0.7547775]
[1753172683133,1.20703419,117780.0,117770.0,0.7547775]
[1753172683433,1.03728979,117780.0,117770.0,0.7547775]
[1753172683632,0.97196149,117780.0,117770.0,0.7547775]
[1753172683834,1.14169459,117780.0,117770.0,0.7547775]
[1753172684132,1.16073869,117780.0,117770.0,0.7547775]
[1753172684532,1.21003869,117780.0,117770.0,0.7547775]
[1753172686031,1.28699869,117780.0,117770.0,0.7547775]
[1753172686628,1.28699869,117780.0,117770.0,0.58503]
[1753172687029,1.34336869,117780.0,117770.0,0.58503]
[1753172687635,1.34336869,117780.0,117770.0,0.7547775]
[1753172687836,1.34336869,117780.0,117770.0,0.58503]
[1753172688436,1.34336869,117780.0,117770.0,0.7547775]
[1753172688834,1.34336869,117780.0,117770.0,0.58503]
[1753172689234,1.34336869,117780.0,117770.0,0.7547775]
[1753172689435,1.34336869,117780.0,117770.0,0.58503]
[1753172691242,1.34336869,117780.0,117770.0,0.7547775]
[1753172691436,1.0089672,117780.0,117770.0,0.58503]
[1753172691637,1.34336869,117780.0,117770.0,0.58503]
[1753172692643,1.34336869,117780.0,117770.0,0.7547775]
[1753172692843,1.0089672,117780.0,117770.0,0.7547775]
[1753172693144,1.34336869,117780.0,117770.0,0.7547775]
[1753172693338,1.34336869,117780.0,117770.0,0.58503]
[1753172693743,1.34336869,117780.0,117770.0,0.58623637]
[1753172694145,1.34336869,117780.0,117770.0,0.75598387]
[1753172694340,1.28699869,117780.0,117770.0,0.75598387]
[1753172695647,1.26895459,117780.0,117770.0,0.75598387]
[1753172695844,0.02112174,117780.0,117770.0,0.75598387]
[1753172696139,0.65808174,117780.0,117770.0,0.75598387]
[1753172697043,0.65808174,117780.0,117770.0,1.09038536]
[1753172697243,0.65808174,117780.0,117770.0,1.10038536]
[1753172697543,0.02112174,117780.0,117770.0,1.73730536]
[1753172697845,0.003,117780.0,117770.0,1.73594603]
[1753172698045,0.63692,117790.0,117780.0,0.2586531]
[1753172698246,0.8247612,117790.0,117780.0,0.7547631]
[1753172698940,0.8247612,117790.0,117780.0,0.75596947]
[1753172699545,0.8247612,117790.0,117780.0,0.75896947]
[1753172699947,0.8247612,117790.0,117780.0,0.75996947]
[1753172700648,0.9039412,117790.0,117780.0,0.75996947]
[1753172701442,0.6550426,117790.0,117780.0,0.75996947]
[1753172701639,0.8247613,117790.0,117780.0,0.75996947]
[1753172701846,0.6550426,117790.0,117780.0,0.75996947]
[1753172702347,0.8247612,117790.0,117780.0,0.75996947]
[1753172702553,0.8566412,117790.0,117780.0,0.75996947]
[1753172702743,0.9039412,117790.0,117780.0,0.75996947]
[1753172703249,0.9491212,117790.0,117780.0,0.75996947]
[1753172704047,1.33989269,117790.0,117780.0,0.46563637]
[1753172704249,1.33995269,117790.0,117780.0,0.63536937]
[1753172704647,1.33995269,117790.0,117780.0,0.63653197]
[1753172705549,1.33995269,117790.0,117780.0,0.53690197]
[1753172706954,1.17017409,117790.0,117780.0,0.68277197]
[1753172707143,1.17017409,117790.0,117780.0,0.76113197]
[1753172707649,1.33989269,117790.0,117780.0,0.76113197]
[1753172708249,1.33995269,117790.0,117780.0,0.76113197]
[1753172709049,1.33989269,117790.0,117780.0,0.76113197]
[1753172709251,1.17017409,117790.0,117780.0,0.76113197]
[1753172710146,1.33989269,117790.0,117780.0,0.76113197]
[1753172710846,1.33989269,117790.0,117780.0,0.53690197]
[1753172711053,1.33989269,117790.0,117780.0,0.36716897]
[1753172711245,1.33989269,117790.0,117780.0,0.00636897]
[1753172711448,0.169733,117780.0,117770.0,0.3608]
[1753172711642,0.69947709,117780.0,117770.0,0.3608]
[1753172712255,0.1697474,117770.0,117760.0,0.49674]
[1753172712453,1.31772889,117770.0,117760.0,0.49674]
[1753172712653,1.01837564,117770.0,117760.0,0.08843]
[1753172712844,0.1697619,117760.0,117750.0,0.48692]
[1753172713051,0.68138339,117760.0,117750.0,0.50655]
[1753172713353,0.68138339,117760.0,117750.0,0.44923]
[1753172713658,0.68138339,117760.0,117750.0,0.6763263]
[1753172713953,0.68138339,117760.0,117750.0,0.50655]
[1753172714156,0.3469819,117760.0,117750.0,0.50655]
[1753172714350,0.68138339,117760.0,117750.0,0.6763263]
[1753172714557,0.68238339,117760.0,117750.0,0.6833263]
[1753172715555,0.12427,117760.0,117750.0,0.7598063]
[1753172715854,0.001,117760.0,117750.0,1.43420779]
[1753172716255,0.001,117760.0,117750.0,1.60405579]
[1753172716455,0.65334624,117770.0,117760.0,0.3919918]
[1753172716650,0.01698624,117770.0,117760.0,1.1127918]
[1753172716850,0.8909673,117780.0,117770.0,0.2128273]
[1753172717056,0.8909673,117780.0,117770.0,0.7527773]
[1753172717256,0.9229773,117780.0,117770.0,0.7527773]
[1753172717554,1.40312879,117780.0,117770.0,0.58303]
[1753172717858,1.08712451,117780.0,117770.0,0.50655]
[1753172718060,1.421526,117780.0,117770.0,0.45904]
[1753172718660,1.421526,117780.0,117770.0,0.44923]
[1753172718858,1.421526,117780.0,117770.0,0.3608]
[1753172719360,0.2445762,117770.0,117760.0,0.005]
[1753172719560,0.5970349,117770.0,117760.0,0.005]
[1753172719956,0.9578349,117770.0,117760.0,0.003]
[1753172720755,0.201786,117750.0,117740.0,0.13594]
[1753172720952,1.21238603,117750.0,117740.0,0.13594]
[1753172722261,1.21338603,117750.0,117740.0,0.13594]
[1753172722857,1.22195486,117750.0,117740.0,0.3057304]
[1753172723058,1.22195486,117750.0,117740.0,0.14575]
[1753172723461,1.22195486,117750.0,117740.0,0.3155404]
[1753172723662,1.22195486,117750.0,117740.0,0.3920204]
[1753172723857,1.22195486,117750.0,117740.0,0.7528204]
[1753172724065,1.22395486,117750.0,117740.0,0.3920204]
[1753172724265,1.91915635,117750.0,117740.0,0.22223]
[1753172724567,1.58475486,117750.0,117740.0,0.14575]
[1753172725062,1.25035337,117750.0,117740.0,0.13594]
[1753172725260,1.58475486,117750.0,117740.0,0.13594]
[1753172726468,0.2244704,117740.0,117730.0,0.11631]
[1753172726667,0.55887189,117740.0,117730.0,0.11631]
[1753172727067,0.55887189,117740.0,117730.0,0.13594]
[1753172728065,0.55987189,117740.0,117730.0,0.13594]
[1753172728465,0.55987189,117740.0,117730.0,0.11631]
[1753172729769,0.2244848,117730.0,117720.0,0.49674]
[1753172729969,1.19536629,117730.0,117720.0,0.49674]
[1753172730269,1.19536629,117730.0,117720.0,0.11631]
[1753172730473,1.55616629,117730.0,117720.0,0.11631]
[1753172731172,1.55616629,117730.0,117720.0,0.11731]
[1753172732375,1.55616629,117730.0,117720.0,0.001]
[1753172732971,0.2245137,117710.0,117700.0,0.20635093]
[1753172733174,1.19535519,117710.0,117700.0,0.22223]
[1753172733369,0.55891519,117710.0,117700.0,0.58303]
[1753172733581,0.8382837,117710.0,117700.0,0.58303]
[1753172734084,1.17268519,117710.0,117700.0,0.58303]
[1753172734583,1.17268519,117710.0,117700.0,0.58503]
[1753172734782,1.17268519,117710.0,117700.0,0.58903]
[1753172737378,0.8382837,117710.0,117700.0,0.58903]
[1753172737573,1.17268519,117710.0,117700.0,0.58903]
[1753172739182,0.8382837,117710.0,117700.0,0.58903]
[1753172739484,1.17268519,117710.0,117700.0,0.58903]
[1753172742385,1.19535519,117710.0,117700.0,0.58903]
[1753172742788,1.19535519,117710.0,117700.0,0.51255]
[1753172742990,1.19535519,117710.0,117700.0,0.14194]
[1753172743188,1.19535519,117710.0,117700.0,0.006]
[1753172743989,1.19535519,117710.0,117700.0,0.07386]
[1753172744191,1.19535519,117710.0,117700.0,0.15061]
[1753172744494,1.19535519,117710.0,117700.0,0.22761]
[1753172745690,1.19535519,117710.0,117700.0,0.15061]
[1753172747196,1.14702138,117710.0,117700.0,0.15061]
[1753172748398,1.52526959,117710.0,117700.0,0.07386]
[1753172748596,0.213188,117700.0,117690.0,0.3608]
[1753172748800,0.2132024,117690.0,117680.0,0.46702]
[1753172749093,1.13635008,117690.0,117680.0,0.46702]
[1753172749295,1.18558245,117690.0,117680.0,0.58241]
[1753172750096,1.18558245,117690.0,117680.0,0.22161]
[1753172750298,1.18558245,117690.0,117680.0,0.17767]
[1753172750493,0.8512824,117690.0,117680.0,0.14961]
[1753172750802,1.18658245,117690.0,117680.0,0.15161]
[1753172750999,1.18558245,117690.0,117680.0,0.50741]
[1753172751197,1.18558245,117690.0,117680.0,0.54447]
[1753172751400,1.18558245,117690.0,117680.0,0.58841]
[1753172752906,1.19413341,117690.0,117680.0,0.15061]
[1753172753097,1.19413341,117690.0,117680.0,0.10308]
[1753172753404,0.94423367,117690.0,117680.0,0.14076]
[1753172753606,1.27953372,117690.0,117680.0,0.14076]
[1753172753904,1.28617372,117690.0,117680.0,0.22761]
[1753172755705,1.64697372,117690.0,117680.0,0.006]
[1753172756302,1.00325372,117690.0,117680.0,0.15061]
[1753172756508,1.28741372,117690.0,117680.0,0.22761]
[1753172756803,1.28741372,117690.0,117680.0,0.22561]
[1753172757008,0.93544367,117690.0,117680.0,0.58741]
[1753172757208,0.29148367,117690.0,117680.0,0.58341]
[1753172757408,0.93640367,117690.0,117680.0,0.58341]
[1753172757606,1.27170372,117690.0,117680.0,0.58241]
[1753172757810,0.62778372,117690.0,117680.0,0.58241]
[1753172758107,1.27222372,117690.0,117680.0,0.58241]
[1753172758309,0.93692367,117690.0,117680.0,0.58241]
[1753172758810,1.27222372,117690.0,117680.0,0.58241]
[1753172759005,1.26367276,117690.0,117680.0,0.58241]
[1753172759400,0.92837271,117690.0,117680.0,0.58241]
[1753172759607,0.4424817,117670.0,117660.0,0.00985]
[1753172759807,1.18105745,117670.0,117660.0,0.08685]
[1753172760202,0.77778175,117670.0,117660.0,0.6175556]
[1753172760408,0.3895717,117670.0,117660.0,0.6175556]
[1753172760607,0.72487175,117670.0,117660.0,0.6175556]
[1753172760906,1.39587175,117670.0,117660.0,0.44865]
[1753172761609,1.0605717,117670.0,117660.0,0.58341]
[1753172761809,1.39587175,117670.0,117660.0,0.58341]
[1753172762009,1.0605717,117670.0,117660.0,0.58341]
[1753172762509,1.41506175,117670.0,117660.0,0.58341]
[1753172763112,1.80958175,117670.0,117660.0,0.06886]
[1753172763408,0.2582104,117650.0,117640.0,0.5034081]
[1753172763609,0.69186045,117650.0,117640.0,0.5034081]
[1753172763914,0.69186045,117650.0,117640.0,0.56132952]
[1753172764206,0.69186045,117650.0,117640.0,0.63832952]
[1753172764602,0.3565604,117650.0,117640.0,0.63832952]
[1753172764807,0.69186045,117650.0,117640.0,0.63832952]
[1753172765004,0.69186045,117650.0,117640.0,0.63932952]
[1753172765312,0.69186045,117650.0,117640.0,0.6413486]
[1753172765613,0.69186045,117650.0,117640.0,0.5956016]
[1753172766404,0.69186045,117650.0,117640.0,0.3739916]
[1753172766615,1.0271605,117650.0,117640.0,0.0131916]
[1753172766907,0.3583392,117630.0,117620.0,0.14383967]
[1753172767100,1.72991925,117630.0,117620.0,0.07771]
[1753172767303,0.3583537,117620.0,117610.0,0.07597967]
[1753172767506,1.05445375,117620.0,117610.0,0.14383967]
[1753172767707,1.05445375,117620.0,117610.0,0.06786]
[1753172767913,1.12354642,117620.0,117610.0,0.06786]
[1753172768515,1.12354642,117620.0,117610.0,0.07971]
[1753172768915,1.13197047,117620.0,117610.0,0.09908]
[1753172769411,0.20382267,117620.0,117610.0,0.7543882]
[1753172769811,0.11527267,117620.0,117610.0,0.83036787]
[1753172770017,0.06909267,117620.0,117610.0,0.83036787]
[1753172770217,0.8442037,117620.0,117610.0,0.83036787]
[1753172770517,1.33474375,117620.0,117610.0,0.53688]
[1753172770719,0.9994437,117620.0,117610.0,0.7088587]
[1753172770914,0.9994437,117620.0,117610.0,0.22402]
[1753172770915,1.38078375,117620.0,117610.0,0.22402]
[1753172771217,1.69273515,117620.0,117610.0,0.22402]
[1753172771412,1.69273515,117620.0,117610.0,0.17808]
[1753172771618,1.69273515,117620.0,117610.0,0.14502]
[1753172771818,1.69273515,117620.0,117610.0,0.08171]
[1753172772015,1.69273515,117620.0,117610.0,0.07186]
[1753172772409,1.4062837,117620.0,117610.0,0.07186]
[1753172772610,1.69273515,117620.0,117610.0,0.07186]
[1753172773421,1.4062837,117620.0,117610.0,0.004]
[1753172773615,1.69273515,117620.0,117610.0,0.004]
[1753172773815,1.4062837,117620.0,117610.0,0.004]
[1753172774020,1.69273515,117620.0,117610.0,0.07738]
[1753172774717,1.69273515,117620.0,117610.0,0.10979]
[1753172775619,1.69273515,117620.0,117610.0,0.2797685]
[1753172776418,1.33193515,117620.0,117610.0,0.2797685]
[1753172776722,1.33457348,117620.0,117610.0,0.7680385]
[1753172777114,1.75964348,117620.0,117610.0,0.23726]
[1753172777319,1.75964348,117620.0,117610.0,0.07738]
[1753172777717,1.75964348,117620.0,117610.0,0.004]
[1753172778418,1.75964348,117620.0,117610.0,0.002]
[1753172778621,0.2584994,117610.0,117600.0,0.28957622]
[1753172778817,0.65771085,117610.0,117600.0,0.29976622]
[1753172779017,0.65771085,117610.0,117600.0,0.29977062]
[1753172779522,0.65771085,117610.0,117600.0,0.26736012]
[1753172779721,0.65771085,117610.0,117600.0,0.09736682]
[1753172780023,0.65771085,117610.0,117600.0,0.10755682]
[1753172780210,0.65771085,117610.0,117600.0,0.12977682]
[1753172780615,0.65771085,117610.0,117600.0,0.29977002]
[1753172780816,0.3712594,117610.0,117600.0,0.29977002]
[1753172781019,0.65771085,117610.0,117600.0,0.29977002]
[1753172781219,1.01851085,117610.0,117600.0,0.09736682]
[1753172781516,1.01851085,117610.0,117600.0,0.005]
[1753172781517,1.32185593,117610.0,117600.0,0.005]
[1753172781920,0.3007322,117600.0,117590.0,0.07338]
[1753172782115,1.9745351,117600.0,117590.0,0.07338]
[1753172782522,1.4016322,117600.0,117590.0,0.07338]
[1753172782717,1.68808365,117600.0,117590.0,0.07338]
[1753172783826,1.26601365,117600.0,117590.0,0.4042667]
[1753172784031,0.3100022,117600.0,117590.0,0.7650667]
[1753172784224,1.21881425,117600.0,117590.0,0.7650667]
[1753172784626,0.003,117600.0,117590.0,1.0850667]
[1753172784823,0.003,117600.0,117590.0,1.2551387]
[1753172785023,0.003,117600.0,117590.0,1.54159015]
[1753172785730,0.003,117600.0,117590.0,2.46387015]
[1753172785928,1.5,117610.0,117600.0,0.68970425]
[1753172786130,1.5,117610.0,117600.0,2.23240825]
[1753172786429,2.00491975,117610.0,117600.0,0.7640528]
[1753172786625,1.7184683,117610.0,117600.0,0.7640528]
[1753172786828,2.00491975,117610.0,117600.0,0.7640528]
[1753172787122,2.05418228,117610.0,117600.0,0.4032528]
[1753172787327,2.05418228,117610.0,117600.0,0.7640528]
[1753172787533,1.7184683,117610.0,117600.0,0.7640528]
[1753172787730,1.7224683,117610.0,117600.0,0.7650528]
[1753172788424,1.7234683,117610.0,117600.0,0.7650528]
[1753172789531,1.7234683,117610.0,117600.0,1.1250528]
[1753172789729,1.55349,117610.0,117600.0,1.14397821]
[1753172789930,1.505,117610.0,117600.0,1.64975619]
[1753172790828,1.505,117610.0,117600.0,1.31404221]
[1753172791629,1.6749783,117610.0,117600.0,1.62328221]
[1753172791835,1.505,117610.0,117600.0,1.93328221]
[1753172792030,1.6749783,117610.0,117600.0,1.56044221]
[1753172792230,1.55349,117610.0,117600.0,1.44037821]
[1753172792633,1.55349,117610.0,117600.0,2.12809821]
[1753172792937,1.505,117610.0,117600.0,2.12809821]
[1753172795742,1.505,117610.0,117600.0,2.46381219]
[1753172795938,1.505,117610.0,117600.0,2.63387619]
[1753172796239,0.73742786,117630.0,117620.0,0.2587139]
[1753172796436,0.03556076,117630.0,117620.0,1.4294239]
[1753172796738,1.70551889,117630.0,117620.0,1.0685839]
[1753172797037,2.51479287,117630.0,117620.0,1.0683839]
[1753172797229,2.11177287,117630.0,117620.0,0.7640239]
[1753172797638,2.09330124,117630.0,117620.0,0.7640239]
[1753172798243,2.09630124,117630.0,117620.0,0.7650239]
[1753172798431,1.76058726,117630.0,117620.0,0.7650239]
[1753172798627,2.09630124,117630.0,117620.0,0.4042239]
[1753172798827,2.07425124,117630.0,117620.0,0.4042239]
[1753172799037,2.07425124,117630.0,117620.0,0.7650239]
[1753172799234,1.74153726,117630.0,117620.0,0.4042239]
[1753172799836,1.74153726,117630.0,117620.0,0.7650239]
[1753172800242,1.57158786,117630.0,117620.0,0.7650239]
[1753172801245,1.52309786,117630.0,117620.0,0.7650239]
[1753172801737,1.506,117630.0,117620.0,0.7650239]
[1753172801941,1.506,117630.0,117620.0,0.83230349]
[1753172803340,1.506,117630.0,117620.0,1.20130658]
[1753172803545,1.506,117630.0,117620.0,1.70705256]
[1753172803944,0.9217634,117650.0,117640.0,0.3918044]
[1753172804143,0.10773196,117650.0,117640.0,1.4150044]
[1753172804340,0.76893918,117660.0,117650.0,0.25723]
[1753172804546,0.9573309,117660.0,117650.0,0.75259]
[1753172804842,1.36123488,117660.0,117650.0,0.70587]
[1753172805050,1.40112488,117660.0,117650.0,0.70587]
[1753172805245,1.40112488,117660.0,117650.0,0.31402]
[1753172805544,1.40112488,117660.0,117650.0,0.2365]
[1753172805749,1.40512488,117660.0,117650.0,0.2375]
[1753172806648,1.40912488,117660.0,117650.0,0.2375]
[1753172808048,1.3918257,117660.0,117650.0,0.2375]
[1753172808246,1.3918257,117660.0,117650.0,0.06758]
[1753172808443,1.7526257,117660.0,117650.0,0.001]
[1753172808844,0.36675,117650.0,117640.0,0.6572]
[1753172809038,1.06326398,117650.0,117640.0,0.2964]
[1753172809849,0.3667644,117640.0,117630.0,0.2365289]
[1753172810050,1.36243838,117640.0,117630.0,0.2365289]
[1753172811753,1.36343838,117640.0,117630.0,0.2927889]
[1753172811945,0.15843,117640.0,117630.0,0.7526189]
[1753172812141,0.07988,117640.0,117630.0,0.7526189]
[1753172812342,0.001,117640.0,117630.0,0.7526189]
[1753172812545,0.001,117640.0,117630.0,1.44833288]
[1753172812748,0.002,117640.0,117630.0,1.44833288]
[1753172812952,0.002,117640.0,117630.0,1.08833288]
[1753172813253,0.002,117640.0,117630.0,1.39833288]
[1753172813457,0.002,117640.0,117630.0,1.56834888]
[1753172814657,0.2175563,117660.0,117650.0,0.16992]
[1753172814951,0.2175563,117660.0,117650.0,1.41019]
[1753172814952,0.04765,117660.0,117650.0,1.41019]
[1753172815155,0.2279155,117660.0,117650.0,1.41019]
[1753172815351,1.7591455,117660.0,117650.0,1.04939]
[1753172815757,1.7591455,117660.0,117650.0,1.41019]
[1753172816457,1.5,117660.0,117650.0,1.74590398]
[1753172816655,1.504,117660.0,117650.0,1.74602164]
[1753172816954,1.504,117660.0,117650.0,1.41030766]
[1753172817257,1.6739056,117660.0,117650.0,1.41030766]
[1753172817460,1.504,117660.0,117650.0,1.41030766]
[1753172817952,1.502,117660.0,117650.0,1.41030766]
[1753172818356,1.502,117660.0,117650.0,1.74602164]
[1753172819960,1.502,117660.0,117650.0,1.75432854]
[1753172820357,1.502,117660.0,117650.0,1.41030766]
[1753172820660,1.502,117660.0,117650.0,1.74602164]
[1753172820961,1.54865,117660.0,117650.0,1.40942766]
[1753172821555,1.54865,117660.0,117650.0,0.75570766]
[1753172821755,1.54865,117660.0,117650.0,1.40882766]
[1753172821955,1.7185556,117660.0,117650.0,1.40882766]
[1753172822259,1.54865,117660.0,117650.0,1.40882766]
[1753172822463,1.501,117660.0,117650.0,1.74454164]
[1753172822755,1.5,117660.0,117650.0,1.74554164]
[1753172822962,0.18709026,117690.0,117670.0,0.22187]
[1753172823263,0.10645596,117690.0,117680.0,0.7525467]
[1753172823462,0.27631816,117690.0,117680.0,0.7525467]
[1753172823661,0.68022214,117690.0,117680.0,0.7525467]
[1753172823861,0.71962214,117690.0,117680.0,0.7525467]
[1753172824256,0.72162214,117690.0,117680.0,0.7525467]
[1753172824461,0.72162214,117690.0,117680.0,0.7058267]
[1753172825258,0.72162214,117690.0,117670.0,1.1874916]
[1753172825259,0.3667067,117680.0,117670.0,0.8886999]
[1753172825454,2.20242068,117680.0,117670.0,0.8886999]
[1753172825654,2.20242068,117680.0,117670.0,0.8988399]
[1753172825850,1.8667067,117680.0,117670.0,0.9660999]
[1753172826052,1.8667067,117680.0,117670.0,1.0128199]
[1753172826860,1.8667067,117680.0,117670.0,1.0138199]
[1753172827057,3.21510068,117680.0,117670.0,0.07784]
[1753172827255,3.21510068,117680.0,117670.0,0.2374711]
[1753172827459,2.85430068,117680.0,117670.0,0.2374711]
[1753172828152,3.21510068,117680.0,117670.0,0.06758]
[1753172828349,3.21510068,117680.0,117670.0,0.2374712]
[1753172829365,3.21610068,117680.0,117670.0,0.2374712]
[1753172829555,2.85530068,117680.0,117670.0,0.2374712]
[1753172830163,2.85530068,117680.0,117670.0,0.2364712]